bitfinex/quotes_SOLUSD_20250226
["timestamp","ask_amount","ask_price","bid_price","bid_amount"]
[1740598249410,4.0668,131.97,131.84,218.09]
[1740598249908,12.1827,131.98,131.85,0.56864628]
[1740598250204,12.1827,131.98,131.87,0.14216157]
[1740598250404,16.1529,132.03,131.89,0.56864628]
[1740598250637,16.1529,132.03,131.91,0.14216157]
[1740598250920,16.1529,132.03,131.92,0.4577039]
[1740598251113,16.1529,132.03,131.92,218.09]
[1740598251479,1.98904233,132.02,131.92,218.09]
[1740598251977,99.0529,132.03,131.92,218.09]
[1740598252594,16.1529,132.03,131.92,218.09]
[1740598253675,16.1529,132.03,131.93,0.45791876]
[1740598253878,16.1529,132.03,131.92,218.09]
[1740598255003,16.2159,132.03,131.92,218.09]
[1740598255193,16.2159,132.03,131.93,0.45791157]
[1740598255399,16.2159,132.03,131.93,218.54791157]
[1740598255600,16.2159,132.03,131.93,218.09]
[1740598255998,16.2159,132.03,131.93,228.77]
[1740598256823,19.20501538,132.03,131.93,93.08]
[1740598257615,83.9,132.02,131.89,345.81]
[1740598257823,84.88942727,132.01,131.9,10.68]
[1740598259486,85.88942727,132.01,131.9,10.68]
[1740598259687,86.88942727,132.01,131.9,10.68]
[1740598259917,2.0,131.99,131.9,82.4]
[1740598260116,85.88993304,131.98,131.9,82.4]
[1740598260416,12.3366,131.95,131.85,82.4]
[1740598260625,84.89046492,131.94,131.86,82.4]
[1740598261187,3.7459,131.93,131.86,82.4]
[1740598261733,84.89055355,131.92,131.8,228.77]
[1740598262010,83.9,131.91,131.8,82.4]
[1740598262212,1.9912003,131.9,131.8,82.4]
[1740598262514,12.3267,131.88,131.8,82.4]
[1740598262696,85.89144687,131.87,131.77,82.4]
[1740598262895,82.9,131.86,131.77,82.4]
[1740598263224,3.9937,131.84,131.77,82.4]
[1740598263420,86.8937,131.84,131.77,82.4]
[1740598264115,88.88555269,131.84,131.77,82.4]
[1740598264289,88.88555269,131.84,131.73,93.08]
[1740598264290,82.9,131.83,131.73,93.08]
[1740598264488,84.89232657,131.82,131.73,82.4]
[1740598264688,82.9,131.81,131.73,82.4]
[1740598264912,1.99249734,131.8,131.73,82.4]
[1740598265085,84.89249734,131.8,131.73,82.4]
[1740598265289,86.8937,131.84,131.73,218.09]
[1740598265516,3.9937,131.84,131.74,0.46448422]
[1740598265705,3.9937,131.84,131.74,229.23448422]
[1740598265903,3.9937,131.84,131.74,228.77]
[1740598266106,12.3267,131.88,131.8,0.03]
[1740598266309,3.6375,131.89,131.8,218.12]
[1740598266508,12.977,131.93,131.81,0.46155804]
[1740598266701,12.977,131.93,131.81,218.55155804]
[1740598267012,12.977,131.93,131.82,0.46126069]
[1740598267310,12.977,131.93,131.82,218.09]
[1740598267522,12.977,131.93,131.83,0.46097786]
[1740598268087,12.977,131.93,131.83,218.55097786]
[1740598268396,12.977,131.93,131.83,218.09]
[1740598268700,3.6375,131.94,131.84,0.60249364]
[1740598268887,3.6375,131.94,131.84,218.5500001]
[1740598269088,12.0892,131.98,131.85,10.68]
[1740598269306,12.0892,131.98,131.86,0.45935228]
[1740598269592,12.0892,131.98,131.87,0.28432314]
[1740598269812,12.0892,131.98,131.88,0.45876328]
[1740598270113,12.0892,131.98,131.88,218.54876328]
[1740598270310,3.8338,132.0,131.89,0.28432314]
[1740598270627,12.1522,132.03,131.91,0.28432314]
[1740598270915,12.1522,132.03,131.92,11.13747137]
[1740598271112,12.1522,132.03,131.93,0.28432314]
[1740598271311,12.1522,132.03,131.94,0.4569529]
[1740598271312,0.063,132.03,131.94,0.4569529]
[1740598271487,0.063,132.03,131.95,0.28432314]
[1740598271688,0.063,132.03,131.97,0.28432314]
[1740598271887,0.063,132.03,131.98,11.13577793]
[1740598272318,0.063,132.03,131.99,0.14216157]
[1740598272617,0.063,132.03,132.0,0.45510729]
[1740598272798,0.063,132.03,132.0,218.54510729]
[1740598273112,0.063,132.03,132.0,218.09]
[1740598275221,0.063,132.03,132.01,0.45600015]
[1740598275646,0.063,132.03,132.01,135.69]
[1740598276111,0.063,132.03,132.0,82.4]
[1740598277029,0.063,132.03,132.0,218.09]
[1740598277414,0.063,132.03,132.01,0.4556785]
[1740598277734,0.063,132.07,132.02,0.56864628]
[1740598277905,0.063,132.07,132.04,0.14216157]
[1740598278109,0.063,132.07,132.05,1.45354117]
[1740598278405,0.063,132.07,132.06,0.42648471]
[1740598278602,0.063,132.17,132.07,82.337]
[1740598278818,0.063,132.17,132.09,0.14216157]
[1740598279015,0.063,132.17,132.1,11.11217064]
[1740598279330,0.063,132.17,132.1,229.13917064]
[1740598279530,0.063,132.17,132.1,228.687]
[1740598280238,0.063,132.17,132.11,0.28432314]
[1740598280531,0.063,132.17,132.13,0.28432314]
[1740598280833,0.063,132.17,132.14,0.45061719]
[1740598281014,0.063,132.17,132.14,218.027]
[1740598281734,0.063,132.17,132.14,82.337]
[1740598282331,0.063,132.17,132.14,218.027]
[1740598282720,0.063,132.17,132.14,82.337]
[1740598283048,3.87771208,132.25,132.14,82.337]
[1740598283341,2.0,132.24,132.14,218.027]
[1740598283514,2.0,132.21,132.1,10.64]
[1740598283716,1.0,132.19,132.1,92.977]
[1740598284021,1.0,132.19,132.1,82.337]
[1740598284022,84.88675078,132.18,132.1,82.337]
[1740598284337,82.9,132.17,132.1,82.337]
[1740598284550,82.9,132.17,132.08,10.64]
[1740598284551,84.88686805,132.16,132.08,92.977]
[1740598284840,82.9,132.16,132.08,92.977]
[1740598285222,83.9,132.2,132.08,228.667]
[1740598285438,1.9863036,132.19,132.08,228.667]
[1740598286216,1.9863036,132.19,132.0,13.2234]
[1740598286217,15.8664,132.14,132.0,218.027]
[1740598286536,98.7664,132.14,132.01,10.64]
[1740598286740,1.98730542,132.13,132.01,228.667]
[1740598286931,85.88730542,132.13,132.01,228.667]
[1740598287131,1.0,132.11,132.01,92.977]
[1740598287334,78.58096805,132.1,132.01,92.977]
[1740598287837,76.59277628,132.09,132.01,10.64]
[1740598288162,76.59277628,132.09,131.98,218.027]
[1740598288163,1.98830691,132.08,131.98,218.027]
[1740598288347,1.98830691,132.08,131.95,1.0]
[1740598288348,1.0,132.06,131.96,10.64]
[1740598288554,1.9887187,132.05,131.96,218.027]
[1740598288723,1.9887187,132.05,131.96,82.337]
[1740598288925,1.0,132.09,131.96,219.027]
[1740598289133,78.58113663,132.11,131.97,1.0]
[1740598289439,1.98836035,132.11,132.0,1.0]
[1740598289620,93.45917628,132.14,132.02,1.0]
[1740598289621,1.98770478,132.13,132.02,1.0]
[1740598289938,92.45917628,132.14,132.02,219.027]
[1740598289939,15.8664,132.14,132.02,219.027]
[1740598290119,15.8664,132.14,132.03,1.0]
[1740598290319,15.8664,132.14,132.05,1.0]
[1740598290654,15.8664,132.14,132.05,218.027]
[1740598291099,2.98694534,132.13,131.98,331.847]
[1740598291223,0.063,132.09,131.98,330.847]
[1740598291541,2.05113302,132.09,131.99,10.64]
[1740598291920,1.0,132.08,131.98,205.797]
[1740598292163,1.98855182,132.07,131.98,78.137]
[1740598292353,2.98855182,132.07,131.98,78.137]
[1740598292561,2.98855182,132.07,131.98,10.64]
[1740598292716,1.98855182,132.07,131.98,10.64]
[1740598292921,2.98855182,132.07,131.98,10.64]
[1740598293357,1.98855182,132.07,131.98,10.64]
[1740598293522,78.58122997,132.08,131.98,213.827]
[1740598293717,76.59277628,132.07,131.98,78.137]
[1740598293939,0.063,132.09,131.98,214.827]
[1740598294136,0.063,132.09,131.98,213.827]
[1740598294351,2.05103648,132.09,131.98,214.827]
[1740598294734,0.063,132.09,131.98,214.827]
[1740598295254,2.05087635,132.09,131.98,213.827]
[1740598295947,2.05087635,132.09,131.98,214.827]
[1740598296121,0.063,132.09,131.98,214.827]
[1740598296623,0.063,132.09,132.01,1.0]
[1740598296829,0.063,132.09,132.01,204.187]
[1740598297528,0.063,132.09,132.03,1.0]
[1740598297842,0.063,132.09,132.04,10.64]
[1740598298046,0.063,132.09,132.04,213.827]
[1740598298260,0.063,132.09,132.05,1.0]
[1740598298544,0.063,132.09,132.07,1.0]
[1740598298723,0.063,132.09,132.07,204.187]
[1740598299130,0.063,132.09,132.08,1.0]
[1740598299944,0.063,132.09,132.07,204.187]
[1740598300125,0.063,132.09,132.08,1.0]
[1740598300330,0.063,132.09,132.08,204.187]
[1740598300843,0.063,132.09,132.08,203.187]
[1740598301148,0.063,132.09,132.08,204.187]
[1740598301347,0.063,132.09,132.08,67.497]
[1740598302230,0.063,132.09,132.04,213.827]
[1740598302448,0.063,132.09,132.04,67.497]
[1740598302859,0.063,132.09,132.02,203.187]
[1740598303066,0.063,132.09,132.04,67.497]
[1740598303739,76.59277628,132.08,131.97,203.217]
[1740598304048,76.59277628,132.08,131.98,10.62]
[1740598304730,16.8138,132.09,131.99,1.0]
[1740598305036,16.8138,132.09,131.98,213.807]
[1740598305230,0.063,132.09,132.04,1.0]
[1740598305432,0.063,132.09,132.07,1.0]
[1740598305632,0.063,132.09,132.07,67.497]
[1740598306149,0.063,132.09,132.07,204.187]
[1740598306355,0.063,132.09,132.08,1.0]
[1740598306643,0.063,132.09,132.08,67.497]
[1740598307043,0.063,132.09,132.05,67.497]
[1740598307247,0.063,132.09,132.02,10.62]
[1740598307433,0.063,132.09,132.02,67.497]
[1740598307434,3.9092,132.09,132.02,67.497]
[1740598307636,1.98829882,132.08,132.02,67.497]
[1740598308033,1.0,132.06,131.98,67.497]
[1740598308237,1.0,132.04,131.97,0.03]
[1740598308432,1.98909248,132.04,131.97,0.03]
[1740598308628,76.59277628,132.08,131.97,203.217]
[1740598308837,3.9092,132.09,131.98,1.0]
[1740598309148,1.98789185,132.08,131.98,203.187]
[1740598309464,1.0,132.04,131.98,67.497]
[1740598309656,76.59277628,132.03,131.97,0.03]
[1740598309866,1.98886278,132.02,131.95,203.187]
[1740598310160,3.713,131.99,131.93,67.497]
[1740598310371,79.582441,131.98,131.87,203.187]
[1740598310537,1.0,131.97,131.87,67.497]
[1740598310742,79.58306912,131.96,131.87,67.497]
[1740598310939,76.59277628,131.95,131.87,67.497]
[1740598311144,1.0,131.97,131.87,67.497]
[1740598311145,76.59277628,131.98,131.87,204.187]
[1740598311458,79.58240996,131.97,131.87,67.497]
[1740598311656,1.0,131.95,131.86,10.62]
[1740598311836,76.59277628,131.96,131.86,10.62]
[1740598311837,78.58331065,131.94,131.86,78.117]
[1740598313048,78.58331065,131.94,131.86,67.497]
[1740598315058,1.0,131.93,131.86,67.497]
[1740598315363,1.99081539,131.92,131.84,0.03]
[1740598315742,2.99081539,131.92,131.84,0.03]
[1740598316459,1.99081539,131.92,131.84,0.03]
[1740598317053,12.5863,131.91,131.84,0.03]
[1740598317251,1.99098733,131.9,131.84,0.03]
[1740598317851,4.9933,131.89,131.84,0.03]
[1740598318055,1.99148891,131.88,131.84,0.03]
[1740598320072,3.9933,131.89,131.84,0.03]
[1740598320239,12.5863,131.91,131.84,203.217]
[1740598320455,76.59277628,131.94,131.86,1.0]
[1740598320740,79.58301759,131.94,131.85,78.117]
[1740598320946,77.59277628,131.93,131.84,0.03]
[1740598321152,2.9910048,131.92,131.84,0.03]
[1740598321355,2.9910048,131.92,131.8,0.03]
[1740598321356,1.0,131.89,131.8,0.03]
[1740598321561,13.036,131.87,131.8,0.03]
[1740598321759,3.674,131.85,131.8,0.03]
[1740598322058,78.58485485,131.84,131.8,0.03]
[1740598322270,75.80540628,131.84,131.8,0.03]
[1740598322443,1.99161998,131.83,131.8,0.03]
[1740598322643,75.80540628,131.82,131.8,0.03]
[1740598322975,77.79770914,131.81,131.73,67.497]
[1740598323175,75.80540628,131.8,131.72,0.03]
[1740598323565,1.99255728,131.79,131.72,0.03]
[1740598323868,75.80540628,131.78,131.72,0.03]
[1740598324044,75.80540628,131.81,131.72,68.527]
[1740598324247,77.79750039,131.84,131.74,1.0]
[1740598324465,3.674,131.85,131.77,1.0]
[1740598324647,13.036,131.87,131.8,1.0]
[1740598324964,13.036,131.87,131.8,82.4]
[1740598325342,75.80540628,131.86,131.79,10.62]
[1740598325700,75.80540628,131.86,131.77,82.4]
[1740598325701,77.33293928,131.85,131.77,82.4]
[1740598325873,77.33293928,131.85,131.73,135.69]
[1740598325874,75.80540628,131.84,131.73,218.09]
[1740598326076,3.6854,131.82,131.73,82.4]
[1740598326371,3.6854,131.82,131.72,0.03]
[1740598326372,12.9417,131.79,131.72,0.03]
[1740598326543,78.79841629,131.78,131.72,0.03]
[1740598326737,77.79841629,131.78,131.72,0.03]
[1740598326942,1.0,131.72,131.59,2.0012629]
[1740598327170,78.79965051,131.71,131.59,2.0012629]
[1740598327375,75.80540628,131.71,131.63,1.0]
[1740598327600,16.7594,131.76,131.61,1.0]
[1740598327601,75.80540628,131.75,131.61,1.0]
[1740598327770,1.0,131.73,131.61,82.4]
[1740598327968,1.99421606,131.72,131.61,81.93]
[1740598328265,76.80540628,131.74,131.61,217.62]
[1740598328266,78.79928591,131.74,131.61,217.62]
[1740598328464,1.0,131.72,131.61,217.62]
[1740598328769,1.99373445,131.72,131.61,218.62]
[1740598329155,75.80540628,131.74,131.64,1.0]
[1740598329470,16.7594,131.76,131.66,1.0]
[1740598330052,16.7594,131.76,131.64,217.62]
[1740598330053,1.99286155,131.75,131.65,1.0]
[1740598330274,18.75267144,131.76,131.65,217.62]
[1740598330465,12.9348,131.81,131.7,1.0]
[1740598331053,12.9348,131.81,131.71,1.0]
[1740598331681,12.9348,131.81,131.7,1.0]
[1740598332053,88.74020628,131.81,131.7,217.62]
[1740598332259,1.0,131.78,131.68,81.93]
[1740598332481,77.79870761,131.77,131.68,81.93]
[1740598332785,75.80540628,131.76,131.66,81.93]
[1740598332976,78.79886476,131.75,131.64,81.93]
[1740598333154,3.8932,131.73,131.64,81.93]
[1740598333473,1.99374767,131.72,131.64,81.93]
[1740598333657,1.99374767,131.72,131.61,1.0]
[1740598333658,75.80540628,131.71,131.61,1.0]
[1740598333868,75.80540628,131.7,131.62,1.0]
[1740598334363,1.99368603,131.69,131.61,81.93]
[1740598334565,75.80540628,131.7,131.61,81.93]
[1740598334758,75.80540628,131.7,131.62,1.0]
[1740598335176,77.79893448,131.7,131.61,81.93]
[1740598335476,75.80540628,131.69,131.59,2.0012629]
[1740598335783,1.99451025,131.68,131.59,2.0012629]
[1740598335984,75.80540628,131.67,131.59,2.0012629]
[1740598336284,12.3924,131.71,131.61,1.0]
[1740598336484,1.99378766,131.7,131.61,217.62]
[1740598336795,12.3924,131.71,131.61,228.24]
[1740598337073,12.3924,131.71,131.62,1.0]
[1740598337283,1.0,131.69,131.59,2.0012629]
[1740598337493,1.9946448,131.68,131.59,2.0012629]
[1740598337783,75.80540628,131.7,131.59,84.9312629]
[1740598337971,1.9939075,131.69,131.59,83.9312629]
[1740598338674,1.9939075,131.69,131.59,84.9312629]
[1740598338872,1.9939075,131.69,131.59,83.9312629]
[1740598339076,12.3924,131.71,131.61,1.0]
[1740598339394,12.3924,131.71,131.62,1.0]
[1740598339767,78.79906638,131.7,131.59,83.9312629]
[1740598339971,1.0,131.68,131.61,0.03]
[1740598340287,78.80018919,131.67,131.61,0.03]
[1740598341164,77.80018919,131.67,131.61,0.03]
[1740598345055,75.80540628,131.67,131.61,0.03]
[1740598345899,49.94359896,131.71,131.61,1.03]
[1740598346097,12.4554,131.71,131.62,1.0]
[1740598346583,39.77489121,131.65,131.5,217.62]
[1740598346829,2.0,131.63,131.5,217.62]
[1740598347001,1.99562926,131.62,131.5,217.62]
[1740598347290,76.80540628,131.61,131.5,81.93]
[1740598347494,1.99581565,131.6,131.5,81.93]
[1740598347669,3.7738,131.59,131.5,81.93]
[1740598348085,75.80540628,131.62,131.5,217.62]
[1740598348398,9.5235,131.67,131.51,14.13096694]
[1740598348709,9.5235,131.67,131.54,1.0]
[1740598348987,0.063,131.71,131.56,1.0]
[1740598349290,0.063,131.71,131.57,0.4683689]
[1740598349594,0.063,131.71,131.56,217.62]
[1740598349759,0.063,131.71,131.59,1.0]
[1740598349958,0.063,131.71,131.59,217.62]
[1740598350399,1.99393999,131.7,131.59,217.62]
[1740598350701,0.063,131.71,131.59,217.62]
[1740598351085,0.063,131.71,131.6,1.46855642]
[1740598351265,0.063,131.71,131.63,1.0]
[1740598351478,0.063,131.71,131.64,0.46640594]
[1740598351661,75.80540628,131.7,131.58,217.62]
[1740598351981,1.99422972,131.69,131.58,217.62]
[1740598352679,2.05720772,131.71,131.58,217.62]
[1740598353000,0.063,131.71,131.58,217.62]
[1740598353286,2.05669434,131.71,131.58,217.62]
[1740598353668,0.063,131.71,131.61,2.0]
[1740598353886,0.063,131.71,131.64,1.0]
[1740598354170,0.063,131.71,131.65,12.5673]
[1740598354385,0.063,131.71,131.66,1.46585396]
[1740598354581,14.3839,131.87,131.68,1.0]
[1740598354784,75.80540628,131.86,131.69,10.62]
[1740598354991,77.79728864,131.86,131.7,0.46481514]
[1740598355314,75.80540628,131.86,131.71,1.0]
[1740598355599,1.99156857,131.86,131.71,217.62]
[1740598355776,1.99156857,131.84,131.71,217.62]
[1740598355977,77.79727792,131.88,131.72,0.46479368]
[1740598356178,10.62,131.84,131.7,136.8]
[1740598356492,2.0,131.81,131.67,136.8]
[1740598356673,12.8943,131.79,131.67,218.73]
[1740598356874,1.99298072,131.78,131.67,218.73]
[1740598357074,75.80540628,131.77,131.68,10.62]
[1740598357274,1.99286845,131.76,131.68,10.62]
[1740598357676,75.80540628,131.77,131.68,10.62]
[1740598358281,1.99288745,131.76,131.68,10.62]
[1740598358498,75.80540628,131.77,131.68,10.62]
[1740598359898,12.8943,131.79,131.68,229.35]
[1740598360196,79.47180628,131.81,131.68,229.35]
[1740598360629,1.9924444,131.8,131.68,229.35]
[1740598360773,75.80540628,131.81,131.68,229.35]
[1740598360980,1.9924831,131.82,131.68,230.35]
[1740598361210,203.84540628,131.83,131.7,1.0]
[1740598361211,75.80540628,131.83,131.7,1.0]
[1740598361401,0.063,131.85,131.72,1.0]
[1740598361597,0.063,131.85,131.73,2.46370575]
[1740598361780,0.063,131.85,131.74,10.6]
[1740598361983,0.063,131.85,131.75,1.46338815]
[1740598362181,12.8098,131.83,131.62,218.73]
[1740598362385,75.80540628,131.82,131.69,1.0]
[1740598362595,12.8098,131.83,131.69,219.19474275]
[1740598362802,1.99184617,131.82,131.69,218.73]
[1740598362980,75.80540628,131.81,131.69,218.73]
[1740598363310,1.99250886,131.8,131.69,218.73]
[1740598363482,14.80228293,131.83,131.69,219.73]
[1740598363683,0.063,131.85,131.7,0.46472186]
[1740598363887,0.063,131.85,131.7,219.19472186]
[1740598364087,0.063,131.85,131.7,232.8066]
[1740598364491,0.063,131.77,131.71,1.0]
[1740598364690,0.063,131.77,131.72,12.06417867]
[1740598364892,0.063,131.77,131.72,10.6]
[1740598365289,0.063,131.77,131.72,229.79429566]
[1740598365604,0.063,131.77,131.72,229.33]
[1740598367017,0.063,131.77,131.72,81.93]
[1740598367180,0.063,131.77,131.69,229.33]
[1740598367582,0.063,131.77,131.69,92.53]
[1740598367818,0.063,131.77,131.69,81.93]
[1740598368020,75.80540628,131.76,131.62,218.73]
[1740598368181,1.99336983,131.75,131.62,218.73]
[1740598369483,13.2694,131.77,131.63,2.4671187]
[1740598370185,1.99278379,131.76,131.62,219.73]
[1740598370495,0.063,131.77,131.63,130.46731689]
[1740598371016,0.063,131.77,131.64,1.0]
[1740598371202,0.063,131.77,131.65,0.46613512]
[1740598371385,0.063,131.77,131.66,10.6]
[1740598371589,0.063,131.77,131.66,229.33]
[1740598371813,0.063,131.77,131.7,13.0828]
[1740598372109,0.063,131.77,131.72,1.0]
[1740598372318,0.063,131.77,131.73,12.06382057]
[1740598372606,0.063,131.77,131.75,1.0]
[1740598372814,0.063,131.85,131.77,1.0]
[1740598373000,0.063,131.85,131.78,1.46220527]
[1740598373202,0.063,131.85,131.79,10.6]
[1740598373630,0.063,131.85,131.79,11.6]
[1740598373909,0.063,131.85,131.8,1.46199471]
[1740598374117,0.063,131.85,131.8,218.73]
[1740598374993,0.063,131.85,131.81,1.0]
[1740598375316,0.063,131.85,131.81,218.73]
[1740598378321,0.063,131.85,131.82,0.46126225]
[1740598378494,0.063,131.85,131.81,231.4407]
[1740598378699,0.063,131.85,131.81,218.73]
[1740598378913,0.063,131.85,131.81,81.93]
[1740598380322,0.063,131.85,131.81,219.19176095]
[1740598380501,0.063,131.85,131.81,81.93]
[1740598380766,0.063,131.85,131.81,219.19289123]
[1740598380909,0.063,131.85,131.81,218.73]
[1740598381218,0.063,131.85,131.83,1.0]
[1740598381422,0.063,131.85,131.83,219.19003611]
[1740598381626,0.063,131.85,131.83,218.73]
[1740598382795,0.063,131.85,131.83,81.93]
[1740598383001,0.063,131.85,131.81,81.93]
[1740598383325,0.063,131.85,131.79,229.33]
[1740598383496,0.063,131.85,131.79,92.53]
[1740598383997,0.063,131.85,131.79,229.33]
[1740598384325,0.063,131.85,131.82,2.0]
[1740598384499,0.063,131.85,131.83,1.46030218]
[1740598384897,0.063,131.85,131.84,1.0]
[1740598385092,75.80540628,131.98,131.86,1.0]
[1740598385294,0.063,131.99,131.89,2.0]
[1740598385500,0.063,131.99,131.9,0.45816668]
[1740598385752,0.063,131.99,131.89,219.73]
[1740598385753,0.063,131.99,131.89,218.73]
[1740598386313,0.063,131.99,131.9,0.45889242]
[1740598386516,0.063,131.99,131.91,1.0]
[1740598386832,0.063,131.99,131.92,2.45771869]
[1740598387031,0.063,131.99,131.94,2.0]
[1740598387328,0.063,131.99,131.95,1.45664374]
[1740598387516,0.063,131.99,131.97,1.0]
[1740598387703,0.063,131.99,131.98,0.45578902]
[1740598387905,0.063,131.99,131.98,219.18578902]
[1740598388232,0.063,131.99,131.98,218.73]
[1740598388605,0.063,131.99,131.98,219.73]
[1740598388923,0.063,132.09,131.99,1.0]
[1740598389136,0.063,132.09,132.0,10.58]
[1740598389532,0.063,132.09,131.96,218.73]
[1740598389739,0.063,132.09,131.97,10.58]
[1740598389920,75.80540628,132.08,131.97,10.58]
[1740598390121,1.98834239,132.07,131.97,10.58]
[1740598390439,5.66594239,132.07,131.96,81.93]
[1740598390646,5.66594239,132.07,131.96,92.51]
[1740598391550,3.6776,132.07,131.96,92.51]
[1740598392016,1.98822696,132.06,131.96,92.51]
[1740598392216,75.80540628,132.05,131.96,10.58]
[1740598392418,77.79422641,132.05,131.96,10.58]
[1740598392648,3.6776,132.07,131.96,92.51]
[1740598392832,5.66626645,132.07,131.96,92.51]
[1740598393141,2.0,132.05,131.9,218.73]
[1740598393325,13.3643,132.02,131.91,10.58]
[1740598393652,2.98967021,132.01,131.91,10.58]
[1740598393839,75.80540628,132.0,131.91,10.58]
[1740598394138,1.98931509,131.99,131.87,10.58]
[1740598394345,13.3643,132.02,131.87,230.31]
[1740598394346,75.80540628,131.98,131.87,230.31]
[1740598394643,12.3643,132.02,131.88,0.46060797]
[1740598394944,12.3643,132.02,131.85,81.93]
[1740598394945,3.9313,131.98,131.85,81.93]
[1740598395146,77.79558849,131.97,131.86,10.58]
[1740598395561,77.79558849,131.97,131.85,92.51]
[1740598395941,1.0,131.94,131.78,218.73]
[1740598396146,79.79625615,131.93,131.8,10.58]
[1740598396450,13.2469,131.97,131.81,1.4625879]
[1740598396739,89.05230628,131.97,131.81,219.6625879]
[1740598396935,77.7954965,131.96,131.81,82.4]
[1740598397115,75.80540628,131.95,131.81,220.66155038]
[1740598397313,75.80540628,131.95,131.81,220.2]
[1740598397544,75.80540628,131.95,131.81,219.2]
[1740598397748,77.79552626,131.94,131.81,219.2]
[1740598397912,75.80540628,131.93,131.81,219.2]
[1740598398945,1.99046555,131.96,131.81,82.4]
[1740598398946,77.79585678,131.92,131.81,82.4]
[1740598399258,75.80540628,131.92,131.81,82.4]
[1740598400321,75.80540628,131.92,131.82,10.58]
[1740598401036,75.80540628,131.96,131.83,0.46108155]
[1740598401223,75.80540628,131.96,131.83,219.66108155]
[1740598401424,75.80540628,131.96,131.84,1.0]
[1740598401637,13.2469,131.97,131.85,0.4596614]
[1740598402039,79.73670628,131.98,131.85,220.6596614]
[1740598402241,79.73670628,131.98,131.86,0.45936632]
[1740598402434,79.73670628,131.98,131.86,219.2]
[1740598402617,77.79492771,131.97,131.86,82.4]
[1740598403143,75.80540628,131.96,131.84,92.98]
[1740598403449,77.79572825,131.95,131.84,92.98]
[1740598403926,1.0,131.92,131.81,0.03]
[1740598404128,14.1355,131.93,131.81,0.03]
[1740598404129,77.79659312,131.91,131.81,0.03]
[1740598404443,5.635,131.89,131.81,0.03]
[1740598404644,78.79718871,131.88,131.81,0.03]
[1740598404959,75.80540628,131.87,131.81,0.03]
[1740598405249,13.1355,131.85,131.77,0.03]
[1740598405436,77.7975289,131.84,131.77,0.03]
[1740598406141,76.80540628,131.83,131.77,0.03]
[1740598406323,78.79820449,131.82,131.71,0.03]
[1740598406523,75.80540628,131.81,131.71,0.03]
[1740598406731,1.9924047,131.8,131.71,0.03]
[1740598407538,1.0,131.78,131.71,0.03]
[1740598407731,1.0,131.76,131.71,0.03]
[1740598407925,1.99361019,131.75,131.71,0.03]
[1740598408126,12.9434,131.73,131.63,0.03]
[1740598408333,77.7991904,131.72,131.63,0.03]
[1740598408528,75.80540628,131.72,131.63,0.03]
[1740598408948,75.80540628,131.72,131.63,219.23]